Workbook

Sheet INÍCIO
B1: ACERCA DESTE MODELO
B2: Utilize esta Ferramenta de Orçamentação de Sites para monitorizar o Investimento Inicial e os respetivos Benefícios e Custos.
B3: Preencha o Nome da Empresa e a Data.
B4: Introduza os detalhes nas tabelas para calcular automaticamente os Totais e as Métricas de Avaliação.
B5: Nota:
B6: Estão disponíveis instruções adicionais na coluna A de cada folha de cálculo da FERRAMENTA DE ORÇAMENTO. O texto está intencionalmente oculto. Para remover o texto, selecione a coluna A e, em seguida, selecione Eliminar. Para mostrar o texto, selecione a coluna A e, em seguida, mude a cor do tipo de letra.
B7: Para saber mais sobre as tabelas na folha de cálculo, prima Shift+F10 numa tabela, selecione a opção Tabela e, em seguida, selecione Texto Alternativo.

Sheet FERRAMENTA DE ORÇAMENTO
A1: Crie um Orçamento para um Site nesta folha de cálculo Existem instruções úteis sobre como utilizar esta folha de cálculo nas células desta coluna. Prima a Seta Para Baixo para começar.
A2: Introduza o Nome da Empresa na célula à direita. | B2: Nome da Empresa
A3: O título desta folha de cálculo está na célula à direita. | B3: Ferramenta de Orçamentação de Sites
A4: Introduza a Data na célula à direita. | B4: Data
A5: A sugestão está na célula à direita. | B5: As células a cinzento contêm cálculos que não devem ser alterados.
A6: Introduza os detalhes na tabela Taxa a partir da célula à direita. A instrução seguinte está na célula A10. | B6: Dados da Empresa | C6: Taxa
B7: Taxa de retorno necessária | C7: 10%
B8: Taxa de imposto | C8: 30%
A10: Introduza os detalhes na tabela Investimento Inicial a partir da célula à direita. A instrução seguinte está na célula A16. | B10: Investimento Inicial no Site | C10: ANO | D10: 1 | E10: 2 | F10: 3
B11: Hardware (por exemplo, servidores) | C11: 25,000.00 €
B12: Software (por exemplo, software de catálogo de comércio eletrónico) | C12: 15,000.00 €
B13: Desenvolvimento (por exemplo, design do site por terceiros e programação) | C13: 150,000.00 €
B14: Investimentos Iniciais Totais | C14: =SUBTOTAL(109,InvestimentoInicial[ANO]) -> 190,000.00 €
A16: Introduza os detalhes na tabela Benefícios a partir da célula à direita. A instrução seguinte está na célula A24. | B16: Benefícios do Site | C16: ANO | D16: 1 | E16: 2 | F16: 3
B17: Vendas diretas | D17: 15,000.00 € | E17: 50,000.00 € | F17: 75,000.00 €
B18: Vendas incrementais resultantes da eficácia do vendedor/promoções | D18: 25,000.00 € | E18: 25,000.00 € | F18: 25,000.00 €
B19: Vendas incrementais resultantes do aumento da participação de parceiros | D19: 25,000.00 € | E19: 25,000.00 € | F19: 25,000.00 €
B20: Custos de viagem reduzidos | D20: 25,000.00 € | E20: 25,000.00 € | F20: 25,000.00 €
B21: Custos de apoio o cliente reduzidos | D21: 50,000.00 € | E21: 50,000.00 € | F21: 50,000.00 €
B22: Benefícios Totais | D22: =SUBTOTAL(109,Benefícios[1]) -> 140,000.00 € | E22: =SUBTOTAL(109,Benefícios[2]) -> 175,000.00 € | F22: =SUBTOTAL(109,Benefícios[3]) -> 200,000.00 €
A24: Introduza os detalhes na tabela Custos a partir da célula à direita. Os valores são calculados automaticamente nas células que contêm a fórmula. A instrução seguinte está na célula A32. | B24: Custos (excluindo os Investimentos Iniciais de Capital) | C24: ANO | D24: 1 | E24: 2 | F24: 3
B25: Custos das vendas | D25: 7,500.00 € | E25: 25,000.00 € | F25: 37,500.00 €
B26: Manutenção | D26: 15,000.00 € | E26: 15,000.00 € | F26: 15,000.00 €
B27: Gestão de Projetos, suporte ao cliente | D27: 35,000.00 € | E27: 35,000.00 € | F27: 35,000.00 €
B28: Publicidade online, registo nos motores de busca | D28: 10,000.00 € | E28: 10,000.00 € | F28: 10,000.00 €
B29: Depreciação dos gastos de capital (é utilizado um período de 3 anos nos cálculos) | D29: =InvestimentoInicial[[#Totals],[ANO]]/3 -> 63,333.33 € | E29: =InvestimentoInicial[[#Totals],[ANO]]/3 -> 63,333.33 € | F29: =InvestimentoInicial[[#Totals],[ANO]]/3 -> 63,333.33 €
B30: Custos Totais | D30: =SUBTOTAL(109,Custos[1]) -> 130,833.33 € | E30: =SUBTOTAL(109,Custos[2]) -> 148,333.33 € | F30: =SUBTOTAL(109,Custos[3]) -> 160,833.33 €
A32: Os valores são calculados automaticamente na tabela Totais a partir da célula à direita. A instrução seguinte está na célula A40. | B32: Totais | C32: ANO | D32: 1 | E32: 2 | F32: 3
B33: Benefícios Líquidos | D33: =Benefícios[[#Totals],[1]]-Custos[[#Totals],[1]] -> 9,166.67 € | E33: =Benefícios[[#Totals],[2]]-Custos[[#Totals],[2]] -> 26,666.67 € | F33: =Benefícios[[#Totals],[3]]-Custos[[#Totals],[3]] -> 39,166.67 €
B34: Imposto | D34: =D33*TaxaDoImposto -> 2,750.00 € | E34: =E33*TaxaDoImposto -> 8,000.00 € | F34: =F33*TaxaDoImposto -> 11,750.00 €
B35: Valor após o imposto | D35: =D33-D34 -> 6,416.67 € | E35: 18,666.67 € | F35: 27,416.67 €
B36: Retorno de depreciação | D36: =D29 -> 63,333.33 € | E36: =E29 -> 63,333.33 € | F36: =F29 -> 63,333.33 €
B37: Fluxo de caixa | C37: =-InvestimentoInicial[[#Totals],[ANO]] -> -190,000.00 € | D37: =D35+D36 -> 69,750.00 € | E37: 82,000.00 € | F37: 90,750.00 €
B38: Fluxo de caixa acumulado | C38: =C37 -> -190,000.00 € | D38: =C38+D37 -> -120,250.00 € | E38: -38,250.00 € | F38: 52,500.00 €
B39: Total | F39: =SUBTOTAL(109,Totais[3]) -> 284,916.67 €
A40: As Métricas de Avaliação são calculadas automaticamente na tabela Métricas a partir da célula à direita.
B41: Métricas de Avaliação | C41: Valores
B42: Valor atual líquido (VAL) | C42: =C37+(NPV(TaxaDeRetorno,D37:F37)) -> 9,359.50 €
B43: Taxa interna de retorno (TIR) | C43: =IRR(C37:F37) -> 12.66%
B44: Período de recuperação do investimento (em anos) | C44: =IF(F38<=0,"Excede 3 anos",IF(E38<=0,(F37-F38)/F37+2,IF(D38<=0,(E37-E38)/E37+1,IF(C38<=0,(D37-D38)/D37,"ND")))) -> 2.42
